fUST/lending_fUST_20240105
["ID","MTS","AMOUNT","RATE_DAILY","PERIOD"]
[310271833,1704431431898,-175.45403617,0.0002197,2]
[310271834,1704431431908,-26.08617639,0.0002206,2]
[310271917,1704431442978,-652.65804518,0.0002206,2]
[310271948,1704431456283,555.74362496,0.0001996,2]
[310271950,1704432057928,370.49574997,0.0001996,2]
[310272020,1704432632092,-154.84515485,0.00021916,4]
[310272021,1704432632102,-1577.02425299,0.00021917,2]
[310272022,1704432632111,-260.04425413,0.00021918,2]
[310272023,1704432632120,-188.98633803,0.00021955,2]
[310272043,1704432638478,-3212.65064827,0.00021955,2]
[310272045,1704432638488,-24173.9603106,0.00021984,2]
[310272047,1704432638498,-161.666823,0.00022579,2]
[310272049,1704432638508,-11631.21342511,0.00023998,2]
[310272051,1704432638518,-200.0,0.00024181,7]
[310272053,1704432638527,-370.49574997,0.0002496,2]
[310272055,1704432638536,-280.0,0.00026599,15]
[310272057,1704432638545,-2482.39965936,0.00027362,2]
[310272059,1704432638554,-511.68379443,0.00027363,2]
[310272061,1704432638563,-391.0,0.00029259,15]
[310272063,1704432638573,-178.44576876,0.000296,2]
[310272065,1704432638582,-3103.63921168,0.00029679,2]
[310272067,1704432638591,-2165.14,0.0002968,3]
[310272070,1704432638601,-3707.5,0.0002968,3]
[310272072,1704432638610,-506.49822082,0.00029689,2]
[310272073,1704432638619,-517.96432277,0.00029689,2]
[310272075,1704432638631,-259.69067529,0.00029689,2]
[310272077,1704432638640,-178.44576875,0.0002969,2]
[310272079,1704432638649,-276000.0,0.0002969,2]
[310272081,1704432638658,-498.5259615,0.000297,5]
[310272084,1704432638670,-306.07162947,0.00029788,2]
[310272085,1704432638679,-334.79668439,0.00029788,2]
[310272087,1704432638689,-199.91851122,0.00029789,4]
[310272089,1704432638698,-500.0,0.00029789,4]
[310272091,1704432638707,-197.02053642,0.00029789,4]
[310272093,1704432638717,-455.74060458,0.00029789,4]
[310272095,1704432638730,-162.9201638,0.00029789,4]
[310272097,1704432638741,-560.41918129,0.00029789,4]
[310272099,1704432638752,-295.53080462,0.00029789,4]
[310272101,1704432638762,-209540.83259918,0.0002979,7]
[310272103,1704432638771,-151.0,0.0002979,2]
[310272105,1704432638780,-151.0,0.0002979,2]
[310272107,1704432638789,-265.647862,0.0002979,2]
[310272109,1704432638798,-370.49574997,0.0002996,2]
[310272111,1704432638807,-685.71824329,0.0003,4]
[310272113,1704432638817,-243.43593693,0.0003,4]
[310272115,1704432638826,-6538.37354299,0.0003,4]
[310272117,1704432638835,-7029.07521928,0.0003,4]
[310272119,1704432638845,-2750.21591567,0.0003,2]
[310272121,1704432638854,-1739.10193292,0.0003,2]
[310272123,1704432638863,-457955.5642679,0.0003,2]
[310272125,1704432638872,-49849.98375736,0.0003,10]
[310272127,1704432638881,-219.843539,0.0003,2]
[310272129,1704432638890,-219.843539,0.0003,2]
[310272131,1704432638899,-219.843539,0.0003,2]
[310272133,1704432638908,-219.843539,0.0003,2]
[310272135,1704432638917,-219.843539,0.0003,2]
[310272137,1704432638926,-219.843539,0.0003,2]
[310272139,1704432638935,-219.843539,0.0003,2]
[310272141,1704432638944,-219.843539,0.0003,2]
[310272143,1704432638953,-1225.77149332,0.0003,14]
[310272145,1704432638962,-151.369176,0.0003,2]
[310272147,1704432638971,-151.0,0.0003,2]
[310272149,1704432638980,-151.0,0.0003,2]
[310272151,1704432638989,-151.0,0.0003,2]
[310272153,1704432638998,-151.0,0.0003,2]
[310272155,1704432639008,-151.0,0.0003,2]
[310272157,1704432639017,-151.0,0.0003,2]
[310272159,1704432639027,-197.12394252,0.0003013,2]
[310272161,1704432639036,-3472.7300767,0.00030378,4]
[310272164,1704432639051,-241.94011901,0.00030998,4]
[310272166,1704432639066,-1414.01539509,0.00030998,4]
[310272168,1704432639075,-151.0,0.00030998,2]
[310272170,1704432639085,-151.0,0.00030998,2]
[310272173,1704432639095,-66001.78779159,0.00031,4]
[310272175,1704432639105,-282.23116997,0.00031,3]
[310272177,1704432639114,-219.843539,0.00031,2]
[310272179,1704432639123,-219.843539,0.00031,2]
[310272181,1704432639133,-151.0,0.00031,2]
[310272183,1704432639142,-155.0,0.00031,2]
[310272185,1704432639152,-151.0,0.00031,2]
[310272187,1704432639162,-112538.33439375,0.00032,10]
[310272189,1704432639171,-219.843539,0.00032,2]
[310272191,1704432639181,-219.843539,0.00032,2]
[310272193,1704432639191,-151.0,0.00032,2]
[310272195,1704432639201,-151.0,0.00032,2]
[310272197,1704432639212,-200.0,0.00032185,15]
[310272198,1704432639223,-348.0,0.00032185,15]
[310272200,1704432639233,-2443.65664893,0.00032356,4]
[310272201,1704432639243,-4098.03422461,0.000325,15]
[310272203,1704432639253,-151.0,0.00032574,2]
[310272205,1704432639263,-500.0,0.00032876,7]
[310272207,1704432639273,-216.80545344,0.00032876,7]
[310272209,1704432639282,-217.07066606,0.00032876,7]
[310272210,1704432639291,-336.25150877,0.00032876,7]
[310272211,1704432639301,-310.77859366,0.00032876,7]
[310272212,1704432639311,-219.843539,0.00032877,2]
[310272213,1704432639321,-219.843539,0.00032877,2]
[310272215,1704432639330,-151.0,0.00032877,2]
[310272216,1704432639341,-151.0,0.00032877,2]
[310272217,1704432639350,-167.91,0.00032877,2]
[310272218,1704432639360,-167.91,0.00032877,2]
[310272219,1704432639369,-167.91,0.00032877,2]
[310272220,1704432639386,-167.91,0.00032877,2]
[310272221,1704432639395,-167.91,0.00032877,2]
[310272222,1704432639405,-167.91,0.00032877,2]
[310272223,1704432639415,-167.91,0.00032877,2]
[310272224,1704432639425,-167.91,0.00032877,2]
[310272225,1704432639436,-167.91,0.00032877,2]
[310272226,1704432639446,-167.91,0.00032877,2]
[310272227,1704432639456,-167.91,0.00032877,2]
[310272228,1704432639466,-167.91,0.00032877,2]
[310272229,1704432639476,-167.91,0.00032877,2]
[310272230,1704432639493,-167.91,0.00032877,2]
[310272231,1704432639514,-167.91,0.00032877,2]
[310272232,1704432639528,-167.91,0.00032877,2]
[310272233,1704432639542,-167.91,0.00032877,2]
[310272234,1704432639554,-167.91,0.00032877,2]
[310272235,1704432639565,-546.50538693,0.00033,2]
[310272236,1704432639579,-175.0,0.00033,2]
[310272237,1704432639591,-155.08933732,0.00033,4]
[310272238,1704432639605,-150.83408251,0.00033564,2]
[310272239,1704432639619,-153.0,0.00033644,2]
[310272240,1704432639632,-153.0,0.00033644,2]
[310272241,1704432639645,-153.0,0.00033644,2]
[310272242,1704432639658,-228.37337966,0.00033994,4]
[310272243,1704432639670,-155.75858157,0.00033994,4]
[310272244,1704432639680,-161.3207187,0.00033994,4]
[310272245,1704432639691,-385.44482468,0.00034,2]
[310272246,1704432639703,-1000.0,0.00034,7]
[310272247,1704432639715,-1364.26955902,0.00034,2]
[310272248,1704432639727,-681.77305212,0.00034,4]
[310272249,1704432639740,-6020.46519048,0.000345,2]
[310272250,1704432639751,-219.843539,0.000345,2]
[310272251,1704432639765,-219.843539,0.000345,2]
[310272252,1704432639778,-151.0,0.000345,2]
[310272253,1704432639789,-151.0,0.000345,2]
[310272254,1704432639799,-4000.0,0.00034521,2]
[310272255,1704432639810,-5892.72063463,0.00034635,2]
[310272256,1704432639824,-215.509158,0.00034635,2]
[310272257,1704432639836,-151.0,0.00034635,2]
[310272258,1704432639849,-2650.27448344,0.00035,4]
[310272259,1704432639864,-154.79876161,0.00035,4]
[310272260,1704432639876,-590.61742421,0.00035,2]
[310272261,1704432639889,-3540.84651895,0.00035,2]
[310272262,1704432639902,-155.66713933,0.00035,6]
[310272263,1704432639915,-4280.0215874,0.00035,4]
[310272264,1704432639928,-1455.37606278,0.00035,14]
[310272265,1704432639942,-151.0,0.0003536,2]
[310272266,1704432639955,-219.843539,0.00035371,2]
[310272267,1704432639967,-219.843539,0.00035371,2]
[310272268,1704432639980,-700.0,0.00035371,2]
[310272269,1704432639992,-797.86737428,0.00035371,2]
[310272270,1704432640003,-2081.74872952,0.00035371,2]
[310272271,1704432640014,-157.86049093,0.00035371,2]
[310272272,1704432640026,-257.83880186,0.00035371,2]
[310272273,1704432640037,-203.88067463,0.00035371,2]
[310272274,1704432640049,-415.44549782,0.00035371,2]
[310272275,1704432640060,-344.44707262,0.00035371,2]
[310272276,1704432640072,-150.0,0.000354,3]
[310272277,1704432640083,-200.0,0.00035403,15]
[310272278,1704432640096,-200.0,0.00035403,15]
[310272279,1704432640107,-368.0,0.00035403,15]
[310272280,1704432640118,-500.0,0.00035452,2]
[310272281,1704432640128,-496.52545114,0.00035463,4]
[310272282,1704432640139,-4825.07202179,0.00035498,4]
[310272283,1704432640151,-2463.21989276,0.00035498,4]
[310272284,1704432640163,-219.843539,0.00035498,2]
[310272285,1704432640175,-219.843531,0.00035498,2]
[310272286,1704432640186,-155.7094461,0.00035499,2]
[310272287,1704432640199,-155.34866474,0.00035499,4]
[310272288,1704432640213,-1653.52920223,0.00035499,4]
[310272289,1704432640228,-155.34872192,0.00035499,2]
[310272290,1704432640240,-158.25059054,0.00035499,4]
[310272291,1704432640252,-155.23284584,0.00035499,4]
[310272292,1704432640263,-165.49712597,0.00035499,4]
[310272293,1704432640275,-155.77118183,0.00035499,4]
[310272294,1704432640287,-786.35658041,0.00035499,3]
[310272295,1704432640299,-167.32136736,0.00035499,4]
[310272296,1704432640311,-291.57730732,0.00035499,4]
[310272297,1704432640322,-155.26001974,0.00035499,4]
[310272298,1704432640333,-1245.73804562,0.00035499,4]
[310272299,1704432640344,-509.31522942,0.00035499,4]
[310272300,1704432640355,-155.40113874,0.00035499,4]
[310272301,1704432640367,-683.42293764,0.00035499,4]
[310272302,1704432640378,-593.63024681,0.00035499,4]
[310272303,1704432640389,-197.72102266,0.00035499,4]
[310272304,1704432640400,-161.52679236,0.00035499,4]
[310272306,1704432640412,-370.53626376,0.00035499,4]
[310272308,1704432640424,-298.4571858,0.00035499,4]
[310272309,1704432640435,-155.09335298,0.00035499,4]
[310272310,1704432640447,-331.35143978,0.00035499,4]
[310272311,1704432640460,-285.30351426,0.00035499,4]
[310272312,1704432640472,-156.4069513,0.00035499,2]
[310272313,1704432640483,-165.13386565,0.00035499,4]
[310272314,1704432640496,-155.24923478,0.00035499,4]
[310272315,1704432640508,-363.20947054,0.00035499,4]
[310272316,1704432640519,-235.68021843,0.000355,4]
[310272317,1704432640531,-3893.10032845,0.000355,4]
[310272318,1704432640541,-47006.99796797,0.000355,14]
[310272319,1704432640552,-13456.96946726,0.00035505,15]
[310272320,1704432640563,-261.42284,0.00035616,120]
[310272321,1704432640574,-4000.0,0.00035798,2]
[310272322,1704432640584,-380.23977679,0.00036,4]
[310272323,1704432640596,-151.0,0.0003622,2]
[310272324,1704432640607,-250.0,0.0003622,2]
[310272325,1704432640618,-50000.0,0.00036485,2]
[310272326,1704432640628,-10000.0,0.00036505,15]
[310272327,1704432640639,-2529.46598961,0.00037,8]
[310272328,1704432640650,-2477.2,0.00037,2]
[310272329,1704432640661,-1360.09,0.00037,2]
[310272330,1704432640676,-999.643862,0.00037,7]
[310272331,1704432640686,-5999.98,0.00037,2]
[310272332,1704432640697,-5999.98,0.00037,2]
[310272333,1704432640707,-6000.0,0.00037,2]
[310272334,1704432640718,-4209.5776207,0.00037,7]
[310272335,1704432640731,-4000.0,0.00037075,2]
[310272336,1704432640742,-6000.0,0.0003718,2]
[310272337,1704432640754,-150.83408251,0.00037293,2]
[310272338,1704432640766,-250.21564279,0.00037293,2]
[310272339,1704432640777,-1017.59,0.0003736,2]
[310272340,1704432640787,-32239.14762077,0.000376,2]
[310272376,1704433739728,-260.04425413,0.00028176,2]
[310272377,1704433739755,-154.84515485,0.00028177,4]
[310272378,1704433752002,154.84515485,0.00026718,4]
[310272379,1704433770001,121.26543617,0.00026718,4]
[310272387,1704433832329,-33.57971868,0.00026718,4]
[310272388,1704433832339,-260.04425413,0.00028202,2]
[310272389,1704433832348,-1888.67602719,0.00028203,2]
[310272390,1704433832360,-818.08738388,0.00028203,2]
[310272485,1704433843418,-690.98561741,0.00028203,2]
[310272714,1704435038635,-235.84148001,0.00026066,2]
[310272716,1704435038645,-154.84515485,0.00026067,4]
[310272718,1704435038654,-260.04425413,0.00026068,2]
[310272720,1704435038663,-2482.39965936,0.00026068,2]
[310272722,1704435038674,-989.19178911,0.00026079,2]
[310272724,1704435038684,-3404.22578987,0.00026102,2]
[310272726,1704435038694,-430.51740342,0.00026103,2]
[310272728,1704435038703,-304.6362485,0.00028203,2]
[310272730,1704435038712,-200.0,0.00028711,15]
[310272732,1704435038723,-3103.63921168,0.00029,2]
[310272734,1704435038732,-994.55805804,0.000295,30]
[310272737,1704435038754,-174.62014509,0.00029588,4]
[310272738,1704435038765,-1060.68683109,0.00029688,2]
[310272739,1704435038775,-753.03001621,0.00029688,2]
[310272740,1704435038787,-19137.30849322,0.00029688,2]
[310272741,1704435038796,-2816.21085006,0.00029688,2]
[310272742,1704435038807,-687.8126782,0.0002979,7]
[310272744,1704435038817,-243.43593693,0.0003,4]
[310272746,1704435038827,-1051.11586886,0.0003,4]
[310272748,1704435038836,-638.77754188,0.00030376,4]
[310272750,1704435038846,-685.71824329,0.00030377,4]
[310272752,1704435038855,-6538.37354299,0.00030377,4]
[310272754,1704435038865,-3472.7300767,0.00030378,4]
[310272756,1704435038875,-1237.18,0.00030988,3]
[310272758,1704435038885,-1752.95,0.00030989,3]
[310272760,1704435038895,-2908.76,0.0003099,3]
[310272762,1704435038905,-434.50301936,0.00030998,4]
[310272764,1704435038916,-791.04994583,0.00030998,4]
[310272766,1704435038926,-4804.34198324,0.00030998,4]
[310272769,1704435038937,-289.14234698,0.00030998,4]
[310272771,1704435038946,-1414.01539509,0.00030998,4]
[310272773,1704435038957,-265.82498479,0.00030999,4]
[310272775,1704435038966,-241.94011901,0.00030999,4]
[310272777,1704435038976,-310.3606501,0.00030999,4]
[310272779,1704435038986,-692.26345074,0.00030999,4]
[310272781,1704435038996,-88975.72130279,0.00031,4]
[310272783,1704435039006,-151.68474053,0.00031003,2]
[310272785,1704435039015,-430.51740342,0.00031103,2]
[310272787,1704435039025,-280.0,0.00031582,15]
[310272789,1704435039034,-5882.03508047,0.00032,10]
[310272791,1704435039044,-590.61241377,0.00032135,2]
[310272793,1704435039054,-4098.03422461,0.000325,15]
[310272795,1704435039064,-546.50538693,0.00033,2]
[310272797,1704435039074,-175.0,0.00033,2]
[310272800,1704435039084,-385.44482468,0.00034,2]
[310272801,1704435039093,-5310.2637076,0.00034,2]
[310272803,1704435039103,-1000.0,0.00034,7]
[310272805,1704435039113,-514.52449219,0.00034159,2]
[310272806,1704435039122,-5000.0,0.0003416,7]
[310272807,1704435039132,-5000.0,0.0003416,7]
[310272808,1704435039142,-5000.0,0.0003416,7]
[310272809,1704435039151,-5000.0,0.00034215,7]
[310272810,1704435039162,-8417.31109727,0.000345,2]
[310272811,1704435039171,-4000.0,0.00034521,2]
[310272812,1704435039181,-175.0,0.00034521,2]
[310272813,1704435039191,-391.0,0.0003474,15]
[310272814,1704435039201,-743.14554309,0.00034999,4]
[310272815,1704435039210,-2650.27448344,0.00035,4]
[310272816,1704435039220,-1004.31162786,0.00035,7]
[310272817,1704435039230,-3540.84651895,0.00035,2]
[310272818,1704435039240,-4280.0215874,0.00035,4]
[310272819,1704435039249,-1455.37606278,0.00035,14]
[310272820,1704435039258,-590.61742421,0.00035,2]
[310272821,1704435039268,-332.16490447,0.00035,4]
[310272822,1704435039277,-154.84515485,0.00035,4]
[310272823,1704435039287,-999.643862,0.00035,7]
[310272824,1704435039296,-150.84915085,0.00035015,2]
[310272825,1704435039304,-151.0,0.00035237,2]
[310272826,1704435039311,-250.0,0.00035237,2]
[310272827,1704435039320,-639.7948794,0.00035371,2]
[310272828,1704435039331,-748.2754288,0.00035371,2]
[310272829,1704435039340,-249.71092399,0.00035371,2]
[310272830,1704435039349,-26232.88481998,0.000354,2]
[310272831,1704435039358,-545.0,0.00035452,2]
[310272832,1704435039368,-496.52545114,0.00035463,4]
[310272833,1704435039378,-155.75858157,0.00035496,4]
[310272834,1704435039387,-228.37337966,0.00035496,4]
[310272835,1704435039396,-155.08933732,0.00035497,4]
[310272836,1704435039406,-161.3207187,0.00035497,4]
[310272837,1704435039416,-2443.65664893,0.00035497,4]
[310272838,1704435039425,-1050.01220121,0.00035498,7]
[310272839,1704435039435,-156.4069513,0.00035498,2]
[310272840,1704435039444,-155.09335298,0.00035498,4]
[310272841,1704435039454,-4825.07202179,0.00035498,4]
[310272842,1704435039464,-3893.10032845,0.00035498,4]
[310272843,1704435039473,-285.30351426,0.00035498,4]
[310272844,1704435039483,-158.25059054,0.00035498,4]
[310272845,1704435039494,-593.63024681,0.00035498,4]
[310272846,1704435039504,-370.53626376,0.00035498,4]
[310272847,1704435039521,-155.23284584,0.00035498,4]
[310272848,1704435039531,-197.72102266,0.00035498,4]
[310272849,1704435039541,-155.34872192,0.00035498,2]
[310272850,1704435039551,-1653.52920223,0.00035498,4]
[310272851,1704435039560,-363.20947054,0.00035498,4]
[310272852,1704435039569,-155.26001974,0.00035498,4]
[310272853,1704435039579,-155.7094461,0.00035498,2]
[310272854,1704435039589,-155.34866474,0.00035498,4]
[310272855,1704435039598,-155.77118183,0.00035498,4]
[310272856,1704435039607,-331.35143978,0.00035498,4]
[310272857,1704435039617,-161.52679236,0.00035498,4]
[310272858,1704435039626,-167.32136736,0.00035498,4]
[310272859,1704435039636,-165.13386565,0.00035498,4]
[310272860,1704435039646,-683.42293764,0.00035498,4]
[310272861,1704435039656,-165.49712597,0.00035498,4]
[310272862,1704435039665,-298.4571858,0.00035498,4]
[310272863,1704435039675,-509.31522942,0.00035498,4]
[310272864,1704435039685,-155.40113874,0.00035498,4]
[310272865,1704435039695,-155.66713933,0.00035498,6]
[310272866,1704435039708,-681.77305212,0.00035498,4]
[310272867,1704435039719,-2463.21989276,0.00035499,4]
[310272868,1704435039728,-155.24923478,0.00035499,4]
[310272869,1704435039738,-291.57730732,0.00035499,4]
[310272870,1704435039748,-47006.99796797,0.000355,14]
[310272871,1704435039757,-13456.96946726,0.00035505,15]
[310272872,1704435039766,-313.276238,0.00035616,120]
[310272873,1704435039775,-4000.0,0.00035798,2]
[310272874,1704435039785,-380.23977679,0.00036,4]
[310272875,1704435039795,-167.91,0.00036,2]
[310272876,1704435039806,-167.91,0.00036,2]
[310272877,1704435039815,-167.91,0.00036,2]
[310272878,1704435039825,-167.91,0.00036,2]
[310272879,1704435039836,-167.91,0.00036,2]
[310272880,1704435039846,-167.91,0.00036,2]
[310272882,1704435039856,-167.91,0.00036,2]
[310272883,1704435039866,-167.91,0.00036,2]
[310272884,1704435039876,-167.91,0.00036,2]
[310272885,1704435039885,-167.91,0.00036,2]
[310272886,1704435039895,-167.91,0.00036,2]
[310272887,1704435039904,-167.91,0.00036,2]
[310272888,1704435039913,-167.91,0.00036,2]
[310272889,1704435039923,-167.91,0.00036,2]
[310272890,1704435039932,-167.91,0.00036,2]
[310272891,1704435039942,-167.91,0.00036,2]
[310272892,1704435039951,-167.91,0.00036,2]
[310272893,1704435039960,-167.91,0.00036,2]
[310272894,1704435039970,-167.91,0.00036,2]
[310272895,1704435039979,-167.91,0.00036,2]
[310272896,1704435039988,-531.21462625,0.00036,30]
[310272897,1704435039998,-500.0,0.00036,7]
[310272898,1704435040007,-155.0,0.00036,2]
[310272899,1704435040017,-253.16810772,0.0003624,2]
[310272900,1704435040026,-10000.0,0.00036505,15]
[310272901,1704435040036,-1051.0,0.000366,2]
[310272902,1704435040045,-1367.93748603,0.0003688,17]
[310272903,1704435040055,-380.14704887,0.00036999,4]
[310272904,1704435040064,-500.0,0.00036999,4]
[310272905,1704435040074,-492.55134104,0.00036999,4]
[310272906,1704435040084,-322.33599443,0.00036999,4]
[310272907,1704435040093,-500.0,0.00036999,4]
[310272908,1704435040102,-395.3924953,0.00036999,4]
[310272909,1704435040112,-220.51049665,0.00036999,7]
[310272910,1704435040120,-4209.5776207,0.00037,7]
[310272911,1704435040129,-3092.83,0.00037,10]
[310272912,1704435040139,-2529.46598961,0.00037,8]
[310272913,1704435040149,-2675.86,0.00037,2]
[310272914,1704435040289,-1017.58,0.00037,2]
[310272915,1704435040299,-5999.99,0.00037,2]
[310272916,1704435040309,-6000.0,0.00037,2]
[310272917,1704435040319,-6000.0,0.00037,2]
[310272918,1704435040328,-500.0,0.00037,7]
[310272919,1704435040338,-50332.43595141,0.00037,2]
[310272920,1704435040347,-4000.0,0.00037075,2]
[310272921,1704435040356,-1501.54167584,0.00037179,2]
[310272922,1704435040366,-216.6199562,0.0003724,2]
[310272923,1704435040375,-6000.0,0.0003736,2]
[310272924,1704435040384,-155.0,0.0003737,2]
[310272925,1704435040393,-5892.72063463,0.00037404,2]
[310272926,1704435040403,-153.0,0.00037534,2]
[310272927,1704435040412,-153.0,0.00037534,2]
[310272928,1704435040421,-306.0,0.00037534,2]
[310272929,1704435040430,-153.0,0.00037534,2]
[310272930,1704435040440,-306.6687095,0.00037534,2]
[310272931,1704435040449,-153.0,0.00037534,2]
[310272932,1704435040459,-153.0,0.00037534,2]
[310272933,1704435040468,-153.0,0.00037534,2]
[310272934,1704435040478,-306.0,0.00037534,2]
[310272935,1704435040487,-153.0,0.00037534,2]
[310272936,1704435040497,-153.0,0.00037534,2]
[310272937,1704435040506,-153.0,0.00037534,2]
[310272938,1704435040515,-153.0,0.00037534,2]
[310272940,1704435040524,-153.0,0.00037534,2]
[310272941,1704435040533,-153.0,0.00037534,2]
[310272942,1704435040542,-153.0,0.00037534,2]
[310272943,1704435040551,-153.0,0.00037534,2]
[310272944,1704435040561,-153.0,0.00037534,2]
[310272945,1704435040571,-153.0,0.00037534,2]
[310272946,1704435040580,-153.0,0.00037534,2]
[310272947,1704435040589,-153.0,0.00037534,2]
[310272948,1704435040598,-153.0,0.00037534,2]
[310272949,1704435040607,-328.4336773,0.00037534,2]
[310272950,1704435040616,-153.0,0.00037534,2]
[310272951,1704435040626,-306.4852738,0.00037534,2]
[310272952,1704435040635,-153.0,0.00037534,2]
[310272953,1704435040644,-153.0,0.00037534,2]
[310272954,1704435040653,-153.0,0.00037534,2]
[310272955,1704435040662,-153.0,0.00037534,2]
[310272956,1704435040673,-153.0,0.00037534,2]
[310272957,1704435040685,-153.0,0.00037534,2]
[310272959,1704435040695,-153.0,0.00037534,2]
[310272960,1704435040705,-153.0,0.00037534,2]
[310272961,1704435040716,-3837.27,0.0003754,2]
[310272962,1704435040726,-282.23116997,0.000376,3]
[310272963,1704435040735,-5000.0,0.000376,15]
[310272964,1704435040745,-150.0,0.000376,11]
[310272965,1704435040754,-405943.17373823,0.000376,2]
[310272966,1704435040765,-229.79786207,0.00037614,3]
[310272967,1704435040774,-22443.58474641,0.00037614,2]
[310272968,1704435040783,-151.68474052,0.0003769,2]
[310272969,1704435040792,-24042.2129021,0.0003777,30]
[310272970,1704435040802,-12206.9372436,0.0003779,5]
[310272972,1704435040812,-2697.93363405,0.000378,12]
[310272974,1704435040822,-151.0,0.00037897,2]
[310272975,1704435040831,-151.0,0.00037897,2]
[310272976,1704435040841,-50001.71171168,0.00037897,2]
[310272977,1704435040850,-50000.0,0.00037897,2]
[310272978,1704435040859,-22815.95586473,0.000379,3]
[310272979,1704435040869,-174.62014509,0.00037922,8]
[310272980,1704435040878,-50000.0,0.00037924,2]
[310272981,1704435040887,-151.0,0.00037924,2]
[310272982,1704435040896,-570.93734049,0.00037989,4]
[310272983,1704435040905,-928.45923481,0.00037989,4]
[310272984,1704435040915,-487.28617803,0.00037989,4]
[310272985,1704435040925,-264.81601131,0.00037989,4]
[310272986,1704435040934,-3251.53883337,0.00037989,2]
[310272987,1704435040944,-389.56279661,0.00037989,2]
[310272988,1704435040953,-151.0,0.00037989,2]
[310272989,1704435040963,-163.03158577,0.0003799,2]
[310272990,1704435040972,-1109.90244217,0.00037998,4]
[310272991,1704435040981,-319.48764183,0.00037999,4]
[310272992,1704435040991,-3463.44375294,0.00037999,4]
[310272993,1704435041000,-469.51749371,0.00037999,4]
[310272994,1704435041010,-188.2513951,0.00037999,4]
[310272995,1704435041019,-162.22572623,0.00037999,4]
[310272996,1704435041028,-543.56581704,0.00037999,2]
[310272998,1704435041037,-22795.1216735,0.00037999,4]
[310272999,1704435041046,-403.29229,0.00037999,2]
[310273000,1704435041056,-1994.4011708,0.00037999,4]
[310273001,1704435041066,-729.71955724,0.00037999,4]
[310273002,1704435041075,-546.54437148,0.00037999,7]
[310273003,1704435041084,-500.0,0.00037999,7]
[310273004,1704435041093,-247575.8966209,0.00038,10]
[310273005,1704435041102,-42082.93692186,0.00038,30]
[310273006,1704435041111,-1492.63446283,0.00038,120]
[310273007,1704435041121,-2131.08407577,0.00038,4]
[310273008,1704435041130,-379.58002868,0.00038,4]
[310273009,1704435041139,-154.82968734,0.00038,7]
[310273010,1704435041148,-154.81422293,0.00038,4]
[310273011,1704435041158,-13680.37156313,0.00038,2]
[310273012,1704435041167,-435.47409075,0.00038,2]
[310273013,1704435041176,-3314.18398383,0.00038,3]
[310273014,1704435041185,-433087.22192731,0.00038,10]
[310273015,1704435041199,-259.95380567,0.00038,10]
[310273016,1704435041211,-23118.00981254,0.00038,10]
[310273017,1704435041222,-14466.61113775,0.00038,10]
[310273018,1704435041231,-5432.20128895,0.00038,30]
[310273019,1704435041240,-500.0,0.00038,2]
[310273020,1704435041249,-500.0,0.00038,2]
[310273021,1704435041258,-3564.38119731,0.00038,2]
[310273022,1704435041267,-151.0,0.00038,2]
[310273023,1704435041276,-151.0,0.00038,2]
[310273024,1704435041284,-151.0,0.00038,2]
[310273025,1704435041293,-151.0,0.00038,2]
[310273026,1704435041302,-667585.0076358,0.00038,10]
[310273030,1704435041742,-1211.64702523,0.00026067,2]
[310273031,1704435041752,-1459.03456325,0.0003,4]
[310273032,1704435041763,-1228.0229052,0.0003,4]
[310273068,1704435043640,-830.39894934,0.0003,4]
[310273069,1704435043663,-1419.84291935,0.0003,4]
[310273089,1704435046533,-778.34355977,0.0003,4]
[310273090,1704435046546,-1313.43232237,0.0003,4]